[Event "93rd German Championship 2022"]
[Site "Magdeburg"]
[Date "2022.08.16"]
[Round "3.7"]
[White "Pahl, Erik"]
[Black "Krastev, Alexander"]
[Result "0-1"]
[ECO "B33"]
[WhiteElo "2203"]
[BlackElo "2435"]
[Annotator "TA"]
[PlyCount "78"]
[EventDate "2022.08.14"]
[EventType "swiss"]
[EventCountry "GER"]
[SourceTitle "playchess.com"]
[Source "ChessBase"]
[SourceQuality "1"]
[TimeControl "40/5400+30:1800+30"]

{[%evp 12,78,34,36,35,0,24,0,35,-36,24,29,24,36,43,-78,-79,-84,-65,-72,-73,-99,-105,-154,-153,-233,-219,-208,-147,-158,-161,-146,-138,-183,-179,-240,-234,-273,-247,-239,-155,-234,-237,-297,-302,-418,-404,-380,-307,-302,-291,-300,-293,-285,-285,-346,-336,-406,-402,-434,-431,-430,-437,-577,-577,-566,-559,-463,-420]} 1. e4 {[%emt 0:00:05]} c5 {[%emt 0:06:46]} 2. Nf3 {[%emt 0:00:09][%cal Bg1f3,Bf3d4,Bd4b5,Bb5d6][%mdl 32]} Nc6 {[%emt 0:00:04]} 3. d4 {[%emt 0:00:05]} cxd4 {[%emt 0:00:04]} 4. Nxd4 {[%emt 0:00:04]} Nf6 {[%emt 0:00:05]} 5. Nc3 {[%emt 0:00:06]} e6 {[%emt 0:00:04]} 6. Ndb5 {[%emt 0:00:16]} Bc5 {[%emt 0:00:12]} 7. Bf4 {[%emt 0:12:58] The main line 7.Bf4 scores better than 7.Nd6+.} O-O {[%emt 0:00:19] B45: Sicilian Four Knights.} 8. Bd6 {[%emt 0:02:15]} Bxd6 {[%emt 0:00:41]} 9. Nxd6 {[%emt 0:00:57]} a6 {[%emt 0:08:13] The position is equal.} (9... Qb6 $5 {[%cal Rb6b2]}) 10. a4 {[%emt 0:13:33] [#]} (10. Qd2 $14) 10... Ne8 $146 {[%emt 0:11:21]} (10... Qb6 $15 11. Qd2 Qxb2) ({Predecessor:} 10... Qc7 11. Be2 Ne8 12. Nc4 d6 13. O-O Bd7 14. Qd2 Rd8 15. Rfd1 Bc8 16. a5 Ne7 {0-1 (29) Horvath,A (2260)-Binder,T (2225) Budapest 1997}) 11. Nxe8 $11 {[%emt 0:11:50]} Rxe8 {[%emt 0:00:31]} 12. Qd6 $1 {[%emt 0:00:39]} Qb6 {[%emt 0:02:53]} 13. O-O-O {[%emt 0:02:49]} (13. Nd1 $14) 13... Qxf2 $17 {[%emt 0:00:27][%cal Ob7b5]} 14. Kb1 {[%emt 0:07:27]} Qf6 {[%emt 0:02:17]} 15. Bc4 {[%emt 0:03:26]} Qe5 {[%emt 0:00:27]} 16. Qd2 {[%emt 0:00:49]} Rb8 {[%emt 0:04:32]} 17. Rhf1 {[%emt 0:09:30] [#]} (17. Qd6 $142) 17... b5 $1 {[%emt 0:01:47]} 18. axb5 {[%emt 0:00:48]} (18. Bb3 $17) 18... axb5 $19 {[%emt 0:00:09]} 19. Bb3 {[%emt 0:00:13]} ({Much worse is} 19. Qf2 Rf8 20. Bb3 b4) 19... Na5 {[%emt 0:10:36]} 20. Qd6 {[%emt 0:15:28]} Qxd6 {[%emt 0:02:04]} 21. Rxd6 {[%emt 0:00:05]} Nc6 {[%emt 0:00:17]} 22. g4 {[%emt 0:01:15]} Ne5 {[%emt 0:01:06]} 23. g5 {[%emt 0:00:15]} (23. h3 $142) 23... Kf8 {[%emt 0:00:38]} ({Weaker is} 23... Bb7 24. Rd4 $17) 24. h4 {[%emt 0:02:02]} Ke7 {[%emt 0:00:44]} 25. Rd2 {[%emt 0:01:41]} Rb6 {[%emt 0:07:05]} 26. Kc1 {[%emt 0:06:45]} (26. Rd5 $17 d6 27. Rxb5 Rxb5 28. Nxb5) 26... Bb7 {[%emt 0:00:13]} 27. Kd1 {[%emt 0:00:26]} Ra8 {[%emt 0:02:56]} 28. Ke2 {[%emt 0:01:42]} b4 {[%emt 0:06:02]} 29. Na4 {[%emt 0:00:08] [#]} Rxa4 {[%emt 0:00:13][%mdl 512]} 30. Bxa4 {[%emt 0:00:06]} Ba6+ {[%emt 0:00:03]} 31. Kf2 {[%emt 0:00:15]} Bxf1 {[%emt 0:00:07]} 32. Kxf1 {[%emt 0:00:03][%mdl 4096] Endgame KRB-KRN} Rd6 {[%emt 0:00:21]} 33. Rh2 {[%emt 0:01:15]} Nc4 {[%emt 0:02:32]} 34. Ke1 {[%emt 0:01:18]} Rd4 {[%emt 0:02:30]} 35. Re2 {[%emt 0:00:19]} Nxb2 {[%emt 0:00:21] Black is clearly winning.} 36. Bb3 {[%emt 0:00:09]} Nd1 {[%emt 0:00:47] aiming for ...Nc3.} 37. Rd2 {[%emt 0:00:13]} Rxd2 {[%emt 0:00:06]} 38. Kxd2 {[%emt 0:00:03]} Nc3 {[%emt 0:00:34]} 39. Kd3 {[%emt 0:00:19]} d5 {[%emt 0:00:36] Inhibits Bc4.  Weighted Error Value: White=0.39/Black=0.14 (very precise)} 0-1

[Event "93rd German Championship 2022"]
[Site "Magdeburg"]
[Date "2022.08.16"]
[Round "3.8"]
[White "Parvanyan, Ashot"]
[Black "Dobrikov, Marco"]
[Result "1-0"]
[ECO "B90"]
[WhiteElo "2428"]
[BlackElo "2223"]
[Annotator "TA"]
[PlyCount "65"]
[EventDate "2022.08.14"]
[EventType "swiss"]
[EventCountry "GER"]
[SourceTitle "playchess.com"]
[Source "ChessBase"]
[SourceQuality "1"]
[TimeControl "40/5400+30:1800+30"]

{[%evp 20,65,21,9,3,0,0,3,6,0,0,0,10,7,9,0,0,0,0,0,24,18,27,27,60,60,60,22,42,39,83,70,97,72,146,100,86,97,192,190,277,282,335,344,1026,467,438,373]} 1. e4 {[%emt 0:00:06]} c5 {[%emt 0:00:10]} 2. Nf3 {[%emt 0:00:07]} d6 {[%emt 0:00:04]} 3. d4 {[%emt 0:00:11]} cxd4 {[%emt 0:00:03]} 4. Nxd4 {[%emt 0:00:06]} Nf6 {[%emt 0:00:03]} 5. Nc3 {[%emt 0:00:08]} a6 {[%emt 0:00:03]} 6. Be3 {[%emt 0:00:15]} e5 {[%emt 0:01:20]} 7. Nf3 {[%emt 0:00:13]} Be7 {[%emt 0:02:21]} 8. Bc4 {[%emt 0:00:28]} Be6 {[%emt 0:00:35]} 9. Bb3 {[%emt 0:05:42]} O-O {[%emt 0:01:28]} 10. O-O {[%emt 0:00:21]} Nc6 {[%emt 0:08:11]} 11. Bg5 {[%emt 0:01:11]} Nd7 {[%emt 0:02:36] B90: Sicilian Najdorf: Unusual White 6th moves, 6 Be3 Ng4 and 6 Be3 e5.} 12. Bxe7 {[%emt 0:02:16]} Qxe7 {[%emt 0:00:06]} 13. Nd5 {[%emt 0:02:56]} Bxd5 {[%emt 0:00:38] The position is equal.} 14. Bxd5 {[%emt 0:00:05]} Nf6 {[%emt 0:00:08]} 15. c3 {[%emt 0:00:50]} Qc7 {[%emt 0:03:14]} 16. Re1 {[%emt 0:02:58]} Rad8 {[%emt 0:10:29] [#]} 17. Qd3 $146 {[%emt 0:15:49]} ({Predecessor:} 17. a3 Rfe8 18. Ba2 h6 19. Rc1 Ne7 20. Qc2 d5 21. exd5 Nexd5 22. Rcd1 Rd7 23. Rd2 {½-½ (42) Hoffmann,F (2284)-Ryder,A (2181) ICCF email 2012}) 17... Nxd5 {[%emt 0:07:29]} 18. Qxd5 {[%emt 0:00:46]} Ne7 {[%emt 0:00:37][%cal Bc6e7,Be7g6,Bg6f4,Bf4h3][%mdl 32]} 19. Qb3 {[%emt 0:10:40]} Ng6 {[%emt 0:05:35]} 20. Rad1 {[%emt 0:08:29]} Nf4 {[%emt 0:01:28]} 21. g3 {[%emt 0:09:57]} Qc8 {[%emt 0:10:17]} 22. Re3 {[%emt 0:04:50]} Qg4 {[%emt 0:02:48]} 23. Kh1 {[%emt 0:02:21]} (23. Qxb7 Nh3+ 24. Kg2 (24. Kf1 Rb8 $11) 24... Rb8 25. Qxa6 Rxb2 $11) (23. Qb6 {is interesting.} Nh3+ 24. Kg2 Nf4+ 25. Kh1) 23... Nh3 {[%emt 0:01:57]} 24. Rd2 {[%emt 0:00:43]} Kh8 {[%emt 0:04:06]} 25. Ng1 {[%emt 0:21:45]} f5 {[%emt 0:02:07]} 26. exf5 {[%emt 0:01:01]} (26. Qxb7 $6 f4 27. Red3 f3 $11) 26... Rxf5 {[%emt 0:01:26]} ({Black should try} 26... Qxf5 27. Nxh3 Qxh3) 27. Nxh3 {[%emt 0:00:43]} (27. Qe6 $142) 27... Qxh3 $16 {[%emt 0:00:01][%cal Rh3f1] [#]} 28. Kg1 {[%emt 0:00:20] Prevents Qf1+.} b5 {[%emt 0:15:48]} (28... Rh5 $16 {keeps fighting.}) 29. Qe6 $40 {[%emt 0:01:36][%mdl 128] White has strong attack.} Rdf8 {[%emt 0:02:10]} (29... Qh5 $142 30. Rxd6 Re8) 30. Rf3 {[%emt 0:01:29]} ({Don't play} 30. Qxd6 h6 31. Re4 Rf3 32. Qxe5 (32. Qxa6 Qf5 $11) 32... Qc8 $18) (30. Rxd6 $6 Qh5 31. Rd2 R5f6 32. Rxe5 Rxe6 33. Rxh5 Rfe8 $18) 30... h6 {[%emt 0:03:34]} 31. Rxd6 {[%emt 0:01:34]} R8f6 $2 {[%emt 0:02:58]} (31... a5 32. Rd5 a4 33. Rxf5 Qxf5 34. Qxf5 Rxf5 35. Rxb5 Rf8 36. Rxe5 Rb8) 32. Qc8+ {[%emt 0:04:15]} (32. Rd8+ $142 Kh7 33. Qg8+ Kg6 {[#]} 34. Rd7 $1 (34. Qe8+ Kg5 $18) 34... Rxf3 35. Rxg7+ Kf5 36. Qc8+ Ke4 37. Qxh3 Rxf2 38. Qh5 Rf1+ 39. Kg2) 32... Rf8 {[%emt 0:00:32]} 33. Rd8 {[%emt 0:00:05] Weighted Error Value: White=0.29 (precise) /Black=0.25 (precise)} 1-0

[Event "93rd German Championship 2022"]
[Site "Magdeburg"]
[Date "2022.08.16"]
[Round "3.9"]
[White "Richter, Nils"]
[Black "Malek, Daniel"]
[Result "1-0"]
[ECO "E04"]
[WhiteElo "2359"]
[BlackElo "2355"]
[Annotator "TA"]
[PlyCount "179"]
[EventDate "2022.08.14"]
[EventType "swiss"]
[EventCountry "GER"]
[SourceTitle "playchess.com"]
[Source "ChessBase"]
[SourceQuality "1"]
[TimeControl "40/5400+30:1800+30"]

{[%evp 20,179,26,21,20,15,30,14,24,20,34,23,24,21,45,7,6,7,6,7,7,0,5,-11,6,0,0,0,0,0,10,0,0,0,0,0,14,14,14,8,10,0,15,14,14,14,14,14,12,11,20,20,20,20,20,11,20,20,20,20,20,20,20,20,20,20,20,20,20,20,20,20,20,20,20,20,20,20,20,20,20,20,20,20,20,20,20,20,20,20,20,20,20,20,20,20,20,20,20,0,20,20,20,20,20,7,20,20,20,7,20,20,20,20,20,16,16,0,21,20,20,20,20,0,20,16,127,127,438,438,438,438,438,256,240,239,1094,642,2774,2922,2412,1919,10495,10495,10495,10495,5474,5474,1655,1424,29975,29976,29980,29973,29980,29981,29984,29985,29984,29982,29982,29981]} 1. d4 {[%emt 0:00:03]} Nf6 {[%emt 0:00:04]} 2. c4 {[%emt 0:00:09]} e6 {[%emt 0:00:03]} 3. g3 {[%emt 0:00:16]} d5 {[%emt 0:00:06]} 4. Bg2 {[%emt 0:00:09]} dxc4 {[%emt 0:00:20]} 5. Nf3 {[%emt 0:00:35]} c5 {[%emt 0:00:41]} 6. O-O {[%emt 0:00:47]} Nc6 {[%emt 0:00:06]} 7. dxc5 {[%emt 0:01:29]} Qxd1 {[%emt 0:00:09]} 8. Rxd1 {[%emt 0:00:07]} Bxc5 {[%emt 0:00:05]} 9. Nbd2 {[%emt 0:00:20][%cal Bb1d2,Bd2b3,Bb3a5,Ba5c6][%mdl 32]} c3 {[%emt 0:00:15]} 10. bxc3 {[%emt 0:00:08]} O-O {[%emt 0:00:22]} 11. Nb3 {[%emt 0:00:36]} Be7 {[%emt 0:00:07] E04: Open Catalan: 5 Nf3.} 12. Nfd4 {[%emt 0:04:04]} Nxd4 {[%emt 0:01:00]} 13. cxd4 {[%emt 0:00:28]} Nd5 {[%emt 0:00:12] The position is equal.} 14. Bd2 {[%emt 0:02:51]} f5 {[%emt 0:00:33]} 15. Na5 {[%emt 0:01:06]} b6 {[%emt 0:12:36]} 16. Nc6 {[%emt 0:00:34]} Bd6 {[%emt 0:00:14] [#]} 17. Bb4 $146 {[%emt 0:39:52]} ({Predecessor:} 17. Bxd5 exd5 18. Bf4 Ba3 19. Rd3 Bb7 20. Ne5 Bd6 21. Nf3 Bxf4 22. gxf4 Ba6 23. Rd2 {½-½ (36) Gleizerov,E (2570)-Thorsteinsson,T (2248) Ortisei 2012}) 17... Nxb4 {[%emt 0:09:08]} 18. Nxb4 {[%emt 0:00:32]} Rb8 {[%emt 0:00:08][%cal Ba8b8,Bb8b7,Bb7c7][%mdl 32]} 19. Nc6 {[%emt 0:01:29][%csl LRa7,LRb8]} Rb7 {[%emt 0:00:14]} 20. Rac1 {[%emt 0:11:30]} Rc7 {[%emt 0:08:16]} 21. Rd3 {[%emt 0:00:55]} Bd7 {[%emt 0:32:17] [#]} 22. Ne7+ $1 {[%emt 0:03:31]} Kf7 {[%emt 0:00:36]} 23. Rxc7 {[%emt 0:00:15]} Bxc7 {[%emt 0:00:09]} 24. Nc6 {[%emt 0:00:34]} a5 {[%emt 0:05:27]} 25. d5 {[%emt 0:04:17]} exd5 {[%emt 0:03:21]} 26. Bxd5+ {[%emt 0:01:59]} Kf6 {[%emt 0:00:43]} 27. Bf3 {[%emt 0:07:41]} Bxc6 {[%emt 0:09:13]} 28. Bxc6 $11 {[%emt 0:00:11][%mdl 4096] Endgame KRB-KRB} Rd8 {[%emt 0:00:03]} 29. Rc3 {[%emt 0:02:37]} Bd6 {[%emt 0:00:26]} 30. Rd3 {[%emt 0:05:44]} Be7 {[%emt 0:00:11]} 31. Bd7 {[%emt 0:01:10]} g6 {[%emt 0:00:36]} 32. a4 {[%emt 0:01:10]} Rb8 {[%emt 0:04:14]} 33. Kg2 {[%emt 0:03:37]} Rb7 {[%emt 0:01:08]} 34. Bb5 {[%emt 0:01:20]} Bc5 {[%emt 0:00:57]} 35. Rd8 {[%emt 0:00:28]} Re7 {[%emt 0:00:09]} 36. Rc8 {[%emt 0:01:00]} Re4 {[%emt 0:00:31]} 37. Kf3 {[%emt 0:01:26]} h5 {[%emt 0:02:56]} 38. h4 {[%emt 0:00:42]} Bb4 {[%emt 0:01:11]} 39. Bc4 {[%emt 0:01:26]} Bc5 {[%emt 0:00:48]} 40. Rc6+ {[%emt 0:01:04]} Kg7 {[%emt 0:00:06]} 41. Bb5 {[%emt 0:31:27]} Kf7 {[%emt 0:34:29]} 42. Kg2 {[%emt 0:00:00]} Kg7 {[%emt 0:00:00]} 43. Rc7+ {[%emt 0:00:00]} Re7 {[%emt 0:00:00]} 44. Rc8 {[%emt 0:00:00]} Re4 {[%emt 0:00:00]} 45. Kf3 {[%emt 0:00:00]} Kf7 {[%emt 0:00:00]} 46. Bc6 {[%emt 0:00:00]} Re7 {[%emt 0:00:00]} 47. Bd5+ {[%emt 0:00:00]} Kg7 {[%emt 0:00:00]} 48. e3 {[%emt 0:00:00]} Rd7 {[%emt 0:00:00]} 49. Bc4 {[%emt 0:00:00]} Re7 {[%emt 0:00:00]} 50. Ke2 {[%emt 0:00:00]} Bb4 {[%emt 0:00:00]} 51. Rc6 {[%emt 0:00:00]} Bc5 {[%emt 0:00:00]} 52. Be6 {[%emt 0:00:00]} Kf6 {[%emt 0:00:00]} 53. Bd5+ {[%emt 0:00:00]} Kg7 $1 {[%emt 0:00:00]} 54. Bc4 {[%emt 0:00:00]} Kh7 {[%emt 0:00:00]} 55. Be6 {[%emt 0:00:00]} Kg7 {[%emt 0:00:00]} 56. Kd3 {[%emt 0:00:00]} Kf6 {[%emt 0:00:00]} 57. Bd5+ {[%emt 0:00:00]} Kg7 $1 {[%emt 0:00:00]} 58. Ke2 {[%emt 0:00:00]} Re5 {[%emt 0:00:00]} 59. Be6 {[%emt 0:00:00]} Kf6 {[%emt 0:00:00]} 60. Bc4+ {[%emt 0:00:00]} Kg7 {[%emt 0:00:00]} 61. Bd3 {[%emt 0:00:00]} Re7 {[%emt 0:00:00]} 62. Kf3 {[%emt 0:00:00]} Rd7 {[%emt 0:00:00]} 63. Bc4 {[%emt 0:00:03]} Re7 {[%emt 0:00:00]} 64. Bb3 {[%emt 0:00:29]} Re5 {[%emt 0:00:00]} 65. Bc2 {[%emt 0:01:10]} Re8 {[%emt 0:00:00]} 66. Kf4 {[%emt 0:01:34]} Kh7 {[%emt 0:00:29]} 67. Rc7+ {[%emt 0:04:23]} Re7 {[%emt 0:00:09]} 68. Rc6 {[%emt 0:00:28]} Re8 {[%emt 0:00:07]} 69. Bb1 {[%emt 0:00:25]} Kg7 {[%emt 0:00:14]} 70. Kf3 {[%emt 0:00:32]} Re7 {[%emt 0:00:28]} 71. Bd3 {[%emt 0:00:16]} Re5 {[%emt 0:01:50]} 72. e4 {[%emt 0:01:29]} fxe4+ {[%emt 0:02:43]} (72... Bd4 $1 $11) 73. Bxe4 $16 {[%emt 0:00:01]} Bxf2 $2 {[%emt 0:00:24][%mdl 8192] Loses the game.} 74. Rxg6+ $18 {[%emt 0:00:57]} Kf7 {[%emt 0:00:16][%cal Oe5e4]} 75. Kxf2 {[%emt 0:00:26]} Rxe4 {[%emt 0:00:05]} 76. Rxb6 {[%emt 0:00:10]} Rxa4 {[%emt 0:00:44] [#] KR-KR} 77. Rh6 $1 {[%emt 0:00:23]} Rb4 $2 {[%emt 0:02:09]} (77... Ra2+ 78. Kf3 Ra3+ 79. Kg2 Ra2+ 80. Kh3 Ra1 81. Rxh5 Ke6) 78. Rxh5 {[%emt 0:00:13]} a4 {[%emt 0:00:03]} 79. Ra5 {[%emt 0:00:37]} Kg6 {[%emt 0:00:11]} 80. Kg2 {[%emt 0:00:27] Hoping for Kh3.} Rc4 {[%emt 0:00:30]} 81. Kh3 {[%emt 0:00:08]} Rb4 {[%emt 0:00:09]} 82. Ra6+ {[%emt 0:00:53]} Kf5 {[%emt 0:07:21]} 83. g4+ {[%emt 0:00:44]} Kf4 {[%emt 0:00:36]} 84. h5 {[%emt 0:00:02][%cal Bh4h5,Bh5h6][%mdl 32] Strongly threatening Kh4.} Rb3+ {[%emt 0:03:16]} 85. Kh4 {[%emt 0:00:02] White mates.} a3 {[%emt 0:00:09]} 86. Ra4+ {[%emt 0:00:50]} Kf3 {[%emt 0:01:46]} 87. h6 {[%emt 0:00:41]} Rb1 {[%emt 0:02:06]} 88. Rxa3+ {[%emt 0:00:10]} Kf4 {[%emt 0:00:08]} 89. Ra4+ {[%emt 0:00:10]} Kf3 {[%emt 0:00:14]} 90. Kh5 {[%emt 0:00:26] Weighted Error Value: White=0.03 (flawless) /Black=0.03 (flawless)} 1-0

[Event "93rd German Championship 2022"]
[Site "Magdeburg"]
[Date "2022.08.16"]
[Round "3.10"]
[White "Colpe, Malte"]
[Black "Parvanyan, Alfred"]
[Result "1/2-1/2"]
[ECO "A48"]
[WhiteElo "2369"]
[BlackElo "2126"]
[Annotator "TA"]
[PlyCount "99"]
[EventDate "2022.08.14"]
[EventType "swiss"]
[EventCountry "GER"]
[SourceTitle "playchess.com"]
[Source "ChessBase"]
[SourceQuality "1"]
[TimeControl "40/5400+30:1800+30"]

{[%evp 16,99,31,27,23,23,17,28,30,20,31,34,51,42,87,92,142,131,176,168,238,241,368,359,354,370,320,364,334,142,149,132,131,126,170,113,104,87,118,71,70,19,19,57,85,20,33,18,29,19,13,20,24,18,31,34,116,119,254,31,21,31,195,24,24,15,9,20,156,0,0,0,141,0,0,0,0,0,0,0,0,0,0,0,0,0]} 1. d4 {[%emt 0:00:03]} Nf6 {[%emt 0:00:53]} 2. Nf3 {[%emt 0:01:34]} g6 {[%emt 0:01:57]} 3. c4 {[%emt 0:02:56]} c6 {[%emt 0:00:36]} 4. Nc3 {[%emt 0:01:43]} d5 {[%emt 0:00:21]} 5. cxd5 {[%emt 0:01:06]} cxd5 {[%emt 0:05:05]} 6. Bf4 {[%emt 0:00:28]} Nc6 {[%emt 0:01:38]} 7. e3 {[%emt 0:01:30]} Bg7 {[%emt 0:01:46]} 8. Be2 {[%emt 0:05:22]} O-O {[%emt 0:03:16]} 9. O-O {[%emt 0:02:14] 9.h3 is more fashionable.} Nh5 {[%emt 0:07:30] D90: Grünfeld: 4 Nf3 Bg7 sidelines.} 10. Bg5 $1 {[%emt 0:00:46]} h6 {[%emt 0:04:17]} 11. Bh4 {[%emt 0:00:07][%cal Of3e5]} g5 {[%emt 0:02:55] [#] White has an edge.} 12. Nd2 $1 {[%emt 0:15:13]} gxh4 {[%emt 0:08:10]} (12... Nf4 13. Bg3) 13. Bxh5 {[%emt 0:00:08]} e5 {[%emt 0:07:32]} 14. dxe5 {[%emt 0:02:43] [#]} h3 $146 {[%emt 0:17:38]} ({Predecessor:} 14... d4 15. exd4 Qxd4 16. Nf3 Qxd1 17. Raxd1 Nxe5 18. Nd4 Nc6 19. Ndb5 Bf5 20. Bf3 Rab8 {½-½ (29) Ruzele,D (2550)-Mozeris,V (2050) Plateliai 2001}) 15. f4 $1 {[%emt 0:10:47]} d4 {[%emt 0:05:43]} (15... f6 $142) 16. exd4 $16 {[%emt 0:01:51] White is more active.} Qxd4+ {[%emt 0:00:51]} 17. Rf2 {[%emt 0:01:49]} Nb4 {[%emt 0:14:58]} (17... Be6 $142 18. Nde4 hxg2 19. Kxg2 (19. Qxd4 Nxd4 20. Nd6 Nf5 $16) 19... Rad8) 18. Nde4 $18 {[%emt 0:07:47]} Nd3 {[%emt 0:04:01]} (18... Rd8 {was worth a try.}) 19. Be2 {[%emt 0:01:00] Really sharp!} Rd8 {[%emt 0:00:50]} 20. Bxd3 {[%emt 0:01:11]} Qxd3 {[%emt 0:00:32]} 21. Qh5 {[%emt 0:04:51]} Qe3 {[%emt 0:01:12]} 22. Qf3 {[%emt 0:18:41]} ({Weaker is} 22. Nd6 Rxd6 23. exd6 Bd4 $16) (22. Nf6+ $18 Bxf6 23. exf6) 22... Qxf3 $16 {[%emt 0:02:20]} 23. Rxf3 {[%emt 0:00:08]} hxg2 {[%emt 0:00:37][%cal Of7f6]} 24. Rg3 {[%emt 0:02:04]} Rd4 {[%emt 0:01:00]} 25. Kf2 {[%emt 0:07:41]} (25. Kxg2 $18 {Hoping for Rg1.} Kh7 26. Kf3) 25... Bf5 {[%emt 0:01:17]} 26. Ke3 {[%emt 0:00:52]} Rad8 {[%emt 0:00:56]} 27. Rg1 {[%emt 0:02:32]} (27. Rxg2 $142 {Black must now prevent Rag1.} Rd3+ 28. Ke2) 27... Rd3+ {[%emt 0:01:44]} 28. Ke2 {[%emt 0:00:16]} ({White should play} 28. Kf2 $14) 28... Rxg3 $11 {[%emt 0:01:01]} 29. hxg3 {[%emt 0:00:25]} Bh3 {[%emt 0:01:11][%cal Ob7b5]} 30. Nf2 {[%emt 0:02:37]} (30. Ke3 $16) 30... Be6 {[%emt 0:00:12]} 31. Rxg2 {[%emt 0:01:06]} f6 {[%emt 0:00:07]} 32. g4 {[%emt 0:02:11]} fxe5 {[%emt 0:01:09]} 33. f5 {[%emt 0:00:09]} Bc4+ {[%emt 0:01:32]} 34. Kf3 {[%emt 0:01:00]} Bf6 {[%emt 0:01:37]} 35. b3 {[%emt 0:00:37]} Ba6 {[%emt 0:00:35]} (35... Bf7 $1 $14) 36. Nce4 $16 {[%emt 0:00:20]} Kf7 {[%emt 0:00:43]} (36... Kg7 $16) 37. Nxf6 $2 {[%emt 0:01:34]} ({White must play} 37. Rh2 $1 $18 {[%cal Rh2h6]}) 37... Kxf6 $18 {[%emt 0:00:05][%mdl 4096] Endgame KRB-KRN} 38. Ne4+ {[%emt 0:01:08]} Kf7 $2 {[%emt 0:00:33]} (38... Ke7 $14) 39. Nc5 $2 {[%emt 0:00:40]} (39. Rc2 $1 $18) 39... Bb5 $1 $11 {[%emt 0:00:19]} 40. Rh2 {[%emt 0:00:43]} Bc6+ {[%emt 0:01:01]} 41. Kg3 {[%emt 0:10:01]} Rd6 {[%emt 0:05:43] [#]} (41... Rd5 $11 42. b4 Rd6) 42. Rc2 $2 {[%emt 0:04:40]} ({Only move:} 42. Rh5 $1 $16) 42... Kf6 {[%emt 0:03:07]} (42... Ke7 $11 {remains equal.}) 43. Rh2 $16 {[%emt 0:00:25]} Kf7 {[%emt 0:00:27] [#]} 44. g5 {[%emt 0:03:43]} (44. Rh5 $1 $16) 44... hxg5 $11 {[%emt 0:02:02] The position is equal.} 45. Kg4 {[%emt 0:01:18]} Rd1 {[%emt 0:02:23] aiming for ...Rg1+.} 46. Rh7+ {[%emt 0:01:28]} Kf6 {[%emt 0:03:20] ...Rg1+ is the strong threat.} 47. Rh6+ {[%emt 0:00:31]} Kf7 {[%emt 0:02:33] Threatens to win with ...Rg1+.} 48. Rh7+ {[%emt 0:01:58]} Kf6 {[%emt 0:00:06]} 49. Rh6+ {[%emt 0:00:56]} Kf7 {[%emt 0:00:15] Strongly threatening ...Rg1+.} 50. Rh7+ {Weighted Error Value: White=0.40/Black=0.30} 1/2-1/2